bitfinex/quotes_BTCUSD_20241128
["timestamp","ask_amount","ask_price","bid_price","bid_amount"]
[1732824187540,0.21218873,95211.0,95210.0,0.20182044]
[1732824187772,0.21318873,95211.0,95210.0,0.20182044]
[1732824188376,0.21318873,95211.0,95210.0,0.31736423]
[1732824188581,0.21318873,95211.0,95210.0,0.42020944]
[1732824189233,0.21318873,95211.0,95210.0,0.83779152]
[1732824189443,0.21318873,95211.0,95210.0,0.42020944]
[1732824191983,0.21218873,95211.0,95210.0,0.42020944]
[1732824192185,0.21218873,95211.0,95210.0,0.49790944]
[1732824192417,0.21218873,95211.0,95210.0,0.54300944]
[1732824192627,0.21218873,95211.0,95210.0,0.86116722]
[1732824192849,0.21218873,95211.0,95210.0,0.54300944]
[1732824193267,0.20818873,95211.0,95210.0,0.54300944]
[1732824193478,0.20818873,95211.0,95210.0,0.42220944]
[1732824193925,0.20818873,95211.0,95210.0,0.42020944]
[1732824194162,0.20918873,95211.0,95210.0,0.42320944]
[1732824194828,0.20818873,95211.0,95210.0,0.42020944]
[1732824196207,0.20818873,95211.0,95210.0,0.42320944]
[1732824202676,0.20818873,95211.0,95210.0,0.4232075]
[1732824204781,0.20818873,95211.0,95210.0,0.43578071]
[1732824209603,0.20818873,95211.0,95210.0,0.43579429]
[1732824210464,0.20818873,95211.0,95210.0,0.33076429]
[1732824210725,0.20818873,95211.0,95210.0,0.33076432]
[1732824210940,0.20818873,95211.0,95210.0,0.43579432]
[1732824211380,0.20818873,95211.0,95210.0,0.43279432]
[1732824214096,0.20818873,95211.0,95210.0,0.43279453]
[1732824216514,0.20818873,95211.0,95210.0,0.43280783]
[1732824218200,0.20818873,95211.0,95210.0,0.32777783]
[1732824218893,0.36171773,95211.0,95210.0,0.32777783]
[1732824219110,0.36171773,95211.0,95210.0,0.31517774]
[1732824219325,0.36171773,95211.0,95210.0,0.30466477]
[1732824219763,0.25668873,95211.0,95210.0,0.30466477]
[1732824219981,0.25668873,95211.0,95210.0,0.30466549]
[1732824220217,0.36171773,95211.0,95210.0,0.30466549]
[1732824220448,0.36171773,95211.0,95210.0,0.20182028]
[1732824221151,0.36371773,95211.0,95210.0,0.20182028]
[1732824221385,0.36171773,95211.0,95210.0,0.20182028]
[1732824221629,0.36171773,95211.0,95210.0,0.20182053]
[1732824221859,0.36171773,95211.0,95210.0,0.19524896]
[1732824222552,0.37071773,95211.0,95210.0,0.19524896]
[1732824222779,0.36371773,95211.0,95210.0,0.19524896]
[1732824222995,0.36171773,95211.0,95210.0,0.19524896]
[1732824223417,0.36471773,95211.0,95210.0,0.19524896]
[1732824223911,0.36171773,95211.0,95210.0,0.19524896]
[1732824224346,0.37271773,95211.0,95210.0,0.19524896]
[1732824224556,0.36371773,95211.0,95210.0,0.19524896]
[1732824224991,0.37071773,95211.0,95210.0,0.19524896]
[1732824225402,0.37771773,95211.0,95210.0,0.19524896]
[1732824225815,0.38071773,95211.0,95210.0,0.19524896]
[1732824228875,0.53071773,95211.0,95210.0,0.19524896]
[1732824229071,0.60771773,95211.0,95210.0,0.19524896]
[1732824229518,0.60771773,95211.0,95210.0,0.33679319]
[1732824230887,0.60771773,95211.0,95210.0,0.19524896]
[1732824231345,0.60771773,95211.0,95210.0,0.33679319]
[1732824232674,0.60771773,95211.0,95210.0,0.19524896]
[1732824232900,0.60771773,95211.0,95210.0,0.28957357]
[1732824233127,0.60771773,95211.0,95210.0,0.19524896]
[1732824233376,0.60771773,95211.0,95210.0,0.28957298]
[1732824233589,0.60771773,95211.0,95210.0,0.19524896]
[1732824234029,0.60771773,95211.0,95210.0,0.28957298]
[1732824234169,0.60771773,95211.0,95210.0,0.19524896]
[1732824236950,0.72056294,95211.0,95210.0,0.19524896]
[1732824237168,0.8463944,95211.0,95210.0,0.09021896]
[1732824237688,0.74356294,95211.0,95210.0,0.09021896]
[1732824238358,0.72756294,95211.0,95210.0,0.09021896]
[1732824238583,0.73656294,95211.0,95210.0,0.09021896]
[1732824238796,0.73356294,95211.0,95210.0,0.09021896]
[1732824239017,0.74156294,95211.0,95210.0,0.09021896]
[1732824239431,0.73356294,95211.0,95210.0,0.09021896]
[1732824239907,0.74256294,95211.0,95210.0,0.09021896]
[1732824240688,0.29803,95210.0,95209.0,3.6e-07]
[1732824240934,0.52637521,95210.0,95209.0,3.6e-07]
[1732824242043,0.5725,95202.0,95201.0,5.6e-07]
[1732824242259,0.416242,95200.0,95199.0,9.6e-07]
[1732824242483,0.52908721,95200.0,95199.0,9.6e-07]
[1732824242756,0.383268,95176.0,95171.0,0.09472402]
[1732824242967,0.383268,95176.0,95171.0,0.0004]
[1732824242968,0.255072,95172.0,95171.0,0.0004]
[1732824244996,0.26605991,95172.0,95171.0,0.0004]
[1732824245460,0.27505991,95172.0,95171.0,0.0004]
[1732824245887,0.014,95172.0,95171.0,0.0004]
[1732824246096,0.119072,95172.0,95171.0,0.0004]
[1732824246311,0.014,95172.0,95171.0,0.0004]
[1732824246568,0.014,95172.0,95171.0,0.23567179]
[1732824246792,0.114072,95172.0,95171.0,0.0012617]
[1732824247002,0.119072,95172.0,95171.0,0.0012617]
[1732824247210,0.110072,95172.0,95171.0,0.0012617]
[1732824247431,0.119072,95172.0,95171.0,0.0012617]
[1732824247644,0.119072,95172.0,95171.0,0.33838091]
[1732824247645,0.005,95172.0,95171.0,0.33838091]
[1732824248105,0.006,95172.0,95171.0,0.33838091]
[1732824248545,0.001,95172.0,95171.0,0.34495438]
[1732824248753,0.005,95172.0,95171.0,0.34595438]
[1732824248960,0.15,95179.0,95171.0,0.24088038]
[1732824249216,0.15,95179.0,95178.0,0.23513416]
[1732824249217,0.255065,95179.0,95178.0,0.23513416]
[1732824249400,0.255065,95179.0,95171.0,0.3416077]
[1732824249401,0.105066,95178.0,95177.0,0.23513416]
[1732824249633,0.15,95179.0,95177.0,0.33797937]
[1732824249845,0.15,95184.0,95178.0,0.10284521]
[1732824250089,0.15,95193.0,95183.0,0.18810577]
[1732824250321,0.210101,95193.0,95187.0,0.18809999]
[1732824250563,0.210092,95196.0,95192.0,0.14107814]
[1732824250779,0.210092,95196.0,95191.0,0.18809999]
[1732824250780,0.10505,95192.0,95191.0,0.18809999]
[1732824251005,0.105053,95190.0,95189.0,0.23513222]
[1732824252162,0.105053,95190.0,95183.0,0.1266]
[1732824252163,0.210103,95191.0,95187.0,0.23513222]
[1732824252368,0.005,95190.0,95183.0,0.1266]
[1732824252583,0.005,95190.0,95188.0,0.23516825]
[1732824252798,0.105054,95189.0,95188.0,0.23516825]
[1732824253213,0.005,95190.0,95187.0,0.18815258]
[1732824253434,0.105055,95188.0,95187.0,0.18815258]
[1732824254587,0.006,95191.0,95187.0,0.23516825]
[1732824254804,0.006,95191.0,95183.0,0.28216541]
[1732824255023,0.001,95190.0,95184.0,0.105059]
[1732824255243,0.105054,95189.0,95184.0,0.38722441]
[1732824255701,0.004,95188.0,95186.0,0.28216541]
[1732824256136,0.004,95188.0,95187.0,0.28216541]
[1732824256558,0.005,95188.0,95186.0,0.28216541]
[1732824256774,0.001,95188.0,95186.0,0.28216541]
[1732824257002,0.210094,95196.0,95186.0,0.28216541]
[1732824257229,0.006,95191.0,95186.0,0.28216541]
[1732824257443,0.210097,95194.0,95186.0,0.28216541]
[1732824257665,0.105056,95187.0,95186.0,0.28216541]
[1732824258104,0.105056,95187.0,95186.0,0.28316541]
[1732824258333,0.105056,95187.0,95186.0,0.001]
[1732824258571,0.105055,95188.0,95186.0,0.28316541]
[1732824258787,0.105056,95187.0,95186.0,0.001]
[1732824259004,0.105056,95187.0,95186.0,0.0018618]
[1732824259706,0.105056,95187.0,95186.0,0.0008618]
[1732824259936,0.003,95191.0,95190.0,0.105053]
[1732824260167,0.003,95191.0,95190.0,0.20789821]
[1732824260387,0.003,95191.0,95190.0,0.25659821]
[1732824260616,0.003,95191.0,95190.0,0.75856513]
[1732824260848,0.003,95191.0,95190.0,0.34147037]
[1732824261309,0.003,95191.0,95190.0,0.75859025]
[1732824261524,0.20646533,95205.0,95191.0,0.105051]
[1732824261756,0.210079,95203.0,95200.0,0.23546811]
[1732824261987,0.105038,95203.0,95202.0,0.18838181]
[1732824262468,0.232039,95202.0,95201.0,0.18838181]
[1732824262712,0.232039,95202.0,95199.0,0.23546811]
[1732824262713,0.127,95202.0,95199.0,0.09422174]
[1732824263148,0.105044,95198.0,95197.0,0.14129776]
[1732824263623,0.210086,95200.0,95196.0,0.18838181]
[1732824263624,0.105045,95197.0,95196.0,0.18838181]
[1732824264267,0.105046,95196.0,95195.0,0.18838181]
[1732824264506,0.105048,95194.0,95193.0,0.23546811]
[1732824264749,0.105056,95187.0,95186.0,0.28342353]
[1732824265005,0.105056,95187.0,95186.0,0.38626874]
[1732824266111,0.105056,95187.0,95186.0,0.28342353]
[1732824266569,0.105056,95187.0,95186.0,0.0008618]
[1732824267005,0.105056,95187.0,95186.0,0.0018618]
[1732824267285,0.210086,95199.0,95186.0,0.0028618]
[1732824267467,0.315121,95201.0,95198.0,0.23573813]
[1732824267687,0.127,95202.0,95199.0,0.23573813]
[1732824267925,0.105042,95200.0,95199.0,0.23573813]
[1732824268354,0.105043,95199.0,95198.0,0.18862016]
[1732824268650,0.54354533,95202.0,95197.0,0.23576445]
[1732824268651,0.105044,95198.0,95197.0,0.23576445]
[1732824268896,0.33346533,95202.0,95190.0,0.28288576]
[1732824269112,0.105051,95191.0,95190.0,0.28288576]
[1732824269575,0.210101,95193.0,95190.0,0.28294476]
[1732824269808,0.105051,95191.0,95190.0,0.28294476]
[1732824270541,0.105055,95188.0,95187.0,0.10284521]
[1732824271647,0.108055,95188.0,95187.0,0.10284521]
[1732824273509,0.105055,95188.0,95187.0,0.10284521]
[1732824273982,0.112055,95188.0,95187.0,0.10284521]
[1732824274638,0.007,95188.0,95187.0,0.10284521]
[1732824275738,0.112055,95188.0,95187.0,0.10284521]
[1732824283110,0.31852033,95188.0,95187.0,0.10284521]
[1732824284725,0.21346533,95188.0,95187.0,0.10284521]
[1732824285641,0.21518913,95188.0,95187.0,0.10284521]
[1732824290587,0.21518913,95188.0,95187.0,0.33190121]
[1732824290815,0.21518913,95188.0,95187.0,0.33847389]
[1732824291679,0.21518913,95188.0,95187.0,0.33190121]
[1732824292789,0.21418913,95188.0,95187.0,0.37394221]
[1732824293001,0.20818913,95188.0,95187.0,0.37394221]
[1732824293223,0.21118913,95188.0,95187.0,0.37394221]
[1732824293434,0.20818913,95188.0,95187.0,0.37394221]
[1732824293854,0.20818913,95188.0,95187.0,0.37494221]
[1732824297958,0.0017238,95188.0,95181.0,0.31887186]
[1732824298181,0.0017238,95188.0,95167.0,0.01]
[1732824298182,0.0786238,95188.0,95186.0,0.41851979]
[1732824298408,0.1836798,95188.0,95182.0,0.10284521]
[1732824298616,0.0786238,95188.0,95182.0,0.10284521]
[1732824299921,0.1836798,95188.0,95182.0,0.10284521]
[1732824300387,0.0786238,95188.0,95182.0,0.10284521]
[1732824300636,0.0786238,95188.0,95179.0,0.41854154]
[1732824300870,0.0786238,95188.0,95178.0,0.41854154]
[1732824300871,0.0491,95187.0,95178.0,0.41854154]
[1732824301114,0.105059,95185.0,95179.0,0.41854154]
[1732824301319,0.0491,95187.0,95178.0,0.52138675]
[1732824301537,0.0491,95187.0,95178.0,0.10284521]
[1732824302369,0.105058,95185.0,95178.0,0.10284521]
[1732824302583,0.105065,95179.0,95178.0,0.10284521]
[1732824302786,0.105057,95186.0,95178.0,0.10284521]
[1732824302997,0.10506,95183.0,95178.0,0.10284521]
[1732824303225,0.0491,95187.0,95178.0,0.10284521]
[1732824303503,0.154157,95187.0,95186.0,0.28349545]
[1732824303936,0.105058,95186.0,95178.0,0.10284521]
[1732824304151,0.0491,95187.0,95178.0,0.10284521]
[1732824304366,0.259214,95187.0,95178.0,0.10284521]
[1732824304617,0.105059,95184.0,95178.0,0.10284521]
[1732824304847,0.105057,95186.0,95178.0,0.10284521]
[1732824305058,0.105059,95184.0,95178.0,0.10284521]
[1732824306608,0.259214,95187.0,95178.0,0.10284521]
[1732824306822,0.210114,95186.0,95179.0,0.00657317]
[1732824307074,0.210114,95186.0,95178.0,0.10284521]
[1732824307075,0.105063,95181.0,95180.0,0.00657317]
[1732824307303,0.105063,95181.0,95178.0,0.10284521]
[1732824307519,0.210117,95185.0,95178.0,0.10284521]
[1732824307520,0.105065,95179.0,95178.0,0.10284521]
[1732824307768,0.210117,95185.0,95178.0,0.10284521]
[1732824307769,0.210121,95183.0,95178.0,0.10941847]
[1732824307994,0.105063,95181.0,95178.0,0.10941847]
[1732824308210,0.105063,95181.0,95179.0,0.00657326]
[1732824308441,0.106063,95181.0,95180.0,0.00657326]
[1732824308689,0.259214,95187.0,95180.0,0.0008619]
[1732824308690,0.105062,95182.0,95180.0,0.0008619]
[1732824308926,0.210119,95184.0,95180.0,0.0008619]
[1732824309161,0.105062,95182.0,95180.0,0.0008619]
[1732824309379,0.001,95181.0,95180.0,0.0008619]
[1732824309855,0.10506,95183.0,95180.0,0.0008619]
[1732824310783,0.001,95181.0,95180.0,0.0008619]
[1732824311000,0.105061,95183.0,95180.0,0.0008619]
[1732824312361,0.001,95181.0,95180.0,0.0008619]
[1732824312801,0.105061,95183.0,95180.0,0.00743507]
[1732824313014,0.105061,95183.0,95180.0,0.0008619]
[1732824313916,0.001,95181.0,95180.0,0.0008619]
[1732824314124,0.105061,95183.0,95180.0,0.00743507]
[1732824314385,0.105061,95183.0,95180.0,0.0008619]
[1732824314991,0.001,95181.0,95180.0,0.0008619]
[1732824315615,0.105058,95185.0,95180.0,0.0008619]
[1732824315844,0.0786238,95188.0,95180.0,0.0008619]
[1732824316059,0.0786238,95188.0,95185.0,0.41856824]
[1732824316725,0.105056,95187.0,95185.0,0.41856824]
[1732824316941,0.0017238,95188.0,95185.0,0.52141345]
[1732824317168,0.0017238,95188.0,95186.0,0.52141345]
[1732824317384,0.0017238,95188.0,95186.0,0.10284521]
[1732824318060,0.0017238,95188.0,95186.0,0.20790121]
[1732824318285,0.0017238,95188.0,95186.0,0.20790221]
[1732824318505,0.0017238,95188.0,95186.0,0.10284521]
[1732824318719,0.0017238,95188.0,95186.0,0.20790221]
[1732824319169,0.0017238,95188.0,95187.0,0.105056]
[1732824319404,0.0017238,95188.0,95187.0,0.20790121]
[1732824319991,0.0017238,95188.0,95187.0,0.2097605]
[1732824320486,0.0017238,95188.0,95187.0,0.20790121]
[1732824320705,0.0017238,95188.0,95187.0,0.65608308]
[1732824320932,0.0017238,95188.0,95187.0,0.33730121]
[1732824321404,0.0017238,95188.0,95187.0,0.33930121]
[1732824322536,0.0017238,95188.0,95187.0,0.33730121]
[1732824322762,0.0017238,95188.0,95187.0,0.33930121]
[1732824324892,0.0017238,95188.0,95187.0,0.34587308]
[1732824326034,0.0017238,95188.0,95187.0,0.6646295]
[1732824326286,0.0017238,95188.0,95187.0,0.34587308]
[1732824327977,0.0017238,95188.0,95187.0,0.37887308]
[1732824328907,0.0017238,95188.0,95187.0,0.38938734]
[1732824333394,0.00233946,95188.0,95187.0,0.38938734]
[1732824338007,0.00233946,95188.0,95187.0,0.25998734]
[1732824338242,0.00233946,95188.0,95187.0,0.57811297]
[1732824340530,0.00233946,95188.0,95187.0,0.25998734]
[1732824341448,0.00233946,95188.0,95187.0,0.25998669]
[1732824344319,0.00233946,95188.0,95187.0,0.26084859]
[1732824350389,0.09233946,95188.0,95187.0,0.12279259]
[1732824351306,0.09233946,95188.0,95187.0,0.12079259]
[1732824351533,0.09233946,95188.0,95187.0,0.22584859]
[1732824351792,0.09233946,95188.0,95187.0,0.12179259]
[1732824352016,0.09233946,95188.0,95187.0,0.12079259]
[1732824352270,0.09233946,95188.0,95187.0,0.12279259]
[1732824353454,0.32159446,95188.0,95187.0,0.01994738]
[1732824353698,0.39577461,95188.0,95187.0,0.01794738]
[1732824353915,0.39577461,95188.0,95187.0,0.00943324]
[1732824353916,0.47159446,95188.0,95187.0,0.00943324]
[1732824354375,0.48224729,95188.0,95187.0,0.0008619]
[1732824354634,0.0779,95182.0,95180.0,0.0008619]
[1732824354880,0.360113,95187.0,95180.0,0.0008619]
[1732824354881,0.229262,95181.0,95180.0,0.0008619]
[1732824355415,0.379262,95181.0,95180.0,0.0008619]
[1732824355665,0.1253,95177.0,95172.0,0.09434257]
[1732824355896,0.182772,95172.0,95171.0,0.0012617]
[1732824357524,0.189772,95172.0,95171.0,0.0012617]
[1732824358242,0.198772,95172.0,95171.0,0.0012617]
[1732824360092,0.20973814,95172.0,95171.0,0.0012617]
[1732824369544,0.20273814,95172.0,95171.0,0.0012617]
[1732824369759,0.20973814,95172.0,95171.0,0.0012617]
[1732824370214,0.20273814,95172.0,95171.0,0.0012617]
[1732824370700,0.20873814,95172.0,95171.0,0.0012617]
[1732824370994,0.19973814,95172.0,95171.0,0.0012617]
[1732824371206,0.20873814,95172.0,95171.0,0.0012617]
[1732824371419,0.18711857,95172.0,95160.0,0.0008617]
[1732824371630,0.105085,95161.0,95160.0,0.0008617]
[1732824372098,0.181885,95161.0,95160.0,0.0008617]
[1732824372548,0.228985,95161.0,95160.0,0.0008617]
[1732824373939,0.231985,95161.0,95160.0,0.0008617]
[1732824374152,0.239985,95161.0,95160.0,0.0008617]
[1732824375023,0.116085,95161.0,95160.0,0.0008617]
[1732824376325,0.116085,95161.0,95160.0,0.14194854]
[1732824377949,0.116085,95161.0,95160.0,0.0008617]
[1732824381477,0.116085,95161.0,95160.0,0.14194854]
[1732824381691,0.116085,95161.0,95160.0,0.0008617]
[1732824383385,0.116085,95161.0,95160.0,0.00743706]
[1732824383636,0.116085,95161.0,95160.0,0.19555285]
[1732824384340,0.327862,95161.0,95160.0,0.00743706]
[1732824384556,0.395285,95161.0,95160.0,0.0008617]
[1732824385711,0.405285,95161.0,95160.0,0.0008617]
[1732824385943,0.402285,95161.0,95160.0,0.0008617]
[1732824386177,0.408285,95161.0,95160.0,0.0008617]
[1732824386395,0.400285,95161.0,95160.0,0.0008617]
[1732824386603,0.394285,95161.0,95160.0,0.0008617]
[1732824387023,0.400285,95161.0,95160.0,0.0008617]
[1732824388381,0.43024317,95161.0,95160.0,0.0008617]
[1732824388591,0.46230799,95161.0,95160.0,0.0008617]
[1732824389048,0.45330799,95161.0,95160.0,0.0008617]
[1732824389287,0.42124317,95161.0,95160.0,0.0008617]
[1732824390414,0.53308838,95161.0,95160.0,0.0008617]
[1732824391652,0.60470513,95161.0,95160.0,7e-07]
[1732824391886,0.54308838,95161.0,95160.0,7e-07]
[1732824392131,0.57513383,95161.0,95160.0,7e-07]
[1732824393491,0.56913383,95161.0,95160.0,7e-07]
[1732824393713,0.57613383,95161.0,95160.0,7e-07]
[1732824393932,0.67896529,95161.0,95160.0,7e-07]
[1732824394626,0.66996529,95161.0,95160.0,7e-07]
[1732824395088,0.57613383,95161.0,95160.0,7e-07]
[1732824395323,0.56713383,95161.0,95160.0,7e-07]
[1732824395572,0.56013383,95161.0,95160.0,7e-07]
[1732824395789,0.54508838,95161.0,95160.0,7e-07]
[1732824396220,0.53708838,95161.0,95160.0,7e-07]
[1732824396437,0.56121775,95161.0,95160.0,7e-07]
[1732824396659,0.56921775,95161.0,95160.0,7e-07]
[1732824397148,0.56121775,95161.0,95160.0,7e-07]
[1732824397573,0.56921775,95161.0,95160.0,7e-07]
[1732824397814,0.53508838,95161.0,95160.0,7e-07]
[1732824398258,0.52608838,95161.0,95160.0,7e-07]
[1732824398474,0.53508838,95161.0,95160.0,7e-07]
[1732824398687,0.53508838,95161.0,95160.0,0.09412142]
[1732824399774,0.53508838,95161.0,95160.0,7e-07]
[1732824400426,0.62827248,95161.0,95160.0,7e-07]
[1732824400641,0.62827248,95161.0,95160.0,0.09431414]
[1732824401102,0.53508838,95161.0,95160.0,0.09431414]
[1732824401843,0.53508838,95161.0,95160.0,7e-07]
[1732824409968,0.38374317,95161.0,95160.0,7e-07]
[1732824410893,0.30304317,95161.0,95160.0,7e-07]
[1732824411131,0.53288838,95161.0,95160.0,7e-07]
[1732824411359,0.62555076,95161.0,95160.0,7e-07]
[1732824411775,0.60855076,95161.0,95160.0,7e-07]
[1732824412044,0.62555076,95161.0,95160.0,7e-07]
[1732824412494,0.64059558,95161.0,95160.0,7e-07]
[1732824412713,0.64959558,95161.0,95160.0,7e-07]
[1732824412949,0.65859558,95161.0,95160.0,7e-07]
[1732824413416,0.5759332,95161.0,95160.0,7e-07]
[1732824414591,0.577657,95161.0,95160.0,7e-07]
[1732824415989,0.255095,95152.0,95151.0,0.0004]
[1732824416237,0.35794021,95152.0,95151.0,0.0004]
[1732824417888,0.36694021,95152.0,95151.0,0.0004]
[1732824418116,0.37394021,95152.0,95151.0,0.0004]
[1732824418341,0.40604156,95152.0,95151.0,0.0004]
[1732824421509,0.52694156,95152.0,95151.0,0.0004]
[1732824421961,0.48164156,95152.0,95151.0,0.0004]
[1732824422704,0.49223283,95152.0,95151.0,0.0004]
[1732824424387,0.49223283,95152.0,95151.0,0.00058503]
[1732824426233,0.38938762,95152.0,95151.0,0.00058503]
[1732824426467,0.31378762,95152.0,95151.0,0.00144693]
[1732824427600,0.28168627,95152.0,95151.0,0.14295384]
[1732824428263,0.28168627,95152.0,95151.0,0.00144693]
[1732824428927,0.28168627,95152.0,95151.0,0.28144693]
[1732824429823,0.28168627,95152.0,95151.0,0.5178101]
[1732824430311,0.28168627,95152.0,95151.0,0.28144693]
[1732824434765,0.28168627,95152.0,95151.0,0.28144693]
[1732824437904,0.46513148,95152.0,95151.0,0.28144693]
[1732824438119,0.54354717,95152.0,95151.0,0.28144693]
[1732824438360,0.54354717,95152.0,95151.0,0.4233716]
[1732824438609,0.54354717,95152.0,95151.0,0.28144693]
[1732824453671,0.41664717,95152.0,95151.0,0.28144693]
[1732824454156,0.41664717,95152.0,95151.0,0.37606366]
[1732824455323,0.41664717,95152.0,95151.0,0.37602569]
[1732824456271,0.41664717,95152.0,95151.0,0.28144693]
[1732824457917,0.31380196,95152.0,95151.0,0.28144693]
[1732824458832,0.13168627,95152.0,95151.0,0.32884693]
[1732824459308,0.13168627,95152.0,95151.0,0.33542322]
[1732824459538,0.12268627,95152.0,95151.0,0.33542322]
[1732824459774,0.11568627,95152.0,95151.0,0.33542322]
[1732824460004,0.12468627,95152.0,95151.0,0.33542322]
[1732824460224,0.12968627,95152.0,95151.0,0.33542322]
[1732824460677,0.12468627,95152.0,95151.0,0.33542322]
[1732824460874,0.12868627,95152.0,95151.0,0.33542322]
[1732824461110,0.11968627,95152.0,95151.0,0.33542322]
[1732824461331,0.109095,95152.0,95151.0,0.33542322]
[1732824461552,0.118095,95152.0,95151.0,0.61918213]
[1732824462261,0.118095,95152.0,95151.0,0.33542322]
[1732824462483,0.118095,95152.0,95151.0,0.33542285]
[1732824465752,0.013,95152.0,95151.0,0.33542277]
[1732824466473,0.013,95152.0,95151.0,0.618963]
[1732824466935,0.013,95152.0,95151.0,0.33542277]
[1732824468063,0.013,95152.0,95151.0,0.61883189]
[1732824468294,0.013,95152.0,95151.0,0.6188252]
[1732824468950,0.118095,95152.0,95151.0,0.6188252]
[1732824469687,0.118095,95152.0,95151.0,0.28802277]
[1732824472860,0.118095,95152.0,95151.0,0.28802265]
[1732824487371,0.118095,95152.0,95151.0,0.29854394]
[1732824487592,0.118095,95152.0,95151.0,0.28802265]
[1732824488251,0.118095,95152.0,95151.0,0.29854394]
[1732824488710,0.118095,95152.0,95151.0,0.29854403]
[1732824488953,0.118095,95152.0,95151.0,0.28144693]
[1732824489181,0.118095,95152.0,95151.0,0.29854403]
[1732824490276,0.118095,95152.0,95148.0,0.23598742]
[1732824490277,0.210196,95150.0,95148.0,0.23598742]
[1732824490509,0.210196,95150.0,95144.0,0.0008617]
[1732824490510,0.105099,95148.0,95147.0,0.23598742]
[1732824490916,0.1051,95147.0,95146.0,0.23598742]
[1732824491137,0.105102,95145.0,95144.0,0.0008617]
[1732824492233,0.113102,95145.0,95144.0,0.0008617]
[1732824492884,0.115102,95145.0,95144.0,0.0008617]
[1732824498152,0.115102,95145.0,95144.0,0.00095226]
[1732824500356,0.115102,95145.0,95144.0,0.44313269]
[1732824501474,0.115102,95145.0,95144.0,0.02462517]
[1732824502394,0.115102,95145.0,95144.0,0.03120097]
[1732824503078,0.115102,95145.0,95144.0,0.07326797]
[1732824505888,0.115102,95145.0,95144.0,0.07326823]
[1732824508785,0.115102,95145.0,95144.0,0.03120123]
[1732824509969,0.113102,95145.0,95144.0,0.03120123]
[1732824510396,0.108102,95145.0,95144.0,0.00095226]
[1732824510604,0.108102,95145.0,95144.0,0.03120123]
[1732824510829,0.116102,95145.0,95144.0,0.03120163]
[1732824514023,0.116102,95145.0,95144.0,0.03120142]
[1732824516448,0.011,95145.0,95144.0,0.28754963]
[1732824517194,0.008,95145.0,95144.0,0.28754963]
[1732824517434,0.008,95145.0,95144.0,0.28754848]
[1732824517666,0.001723,95147.0,95144.0,0.18244548]
[1732824517870,0.001723,95147.0,95145.0,0.13309322]
[1732824518176,0.001723,95147.0,95146.0,0.03024801]
[1732824519130,0.004723,95147.0,95146.0,0.03024801]
[1732824520552,0.001723,95147.0,95146.0,0.36419422]
[1732824520777,0.001723,95147.0,95146.0,0.36419412]
[1732824521260,0.005723,95147.0,95146.0,0.36419412]
[1732824521490,0.001723,95147.0,95146.0,0.36419412]
[1732824521721,0.004723,95147.0,95146.0,0.36419412]
[1732824522625,0.004723,95147.0,95146.0,0.36923405]
[1732824522846,0.004723,95147.0,95146.0,0.36419412]
[1732824523536,0.001723,95147.0,95146.0,0.36419412]
[1732824523970,0.002723,95147.0,95146.0,0.36419412]
[1732824524210,0.002723,95147.0,95146.0,0.3641927]
[1732824528231,0.002723,95147.0,95146.0,0.2879927]
[1732824530441,0.002723,95147.0,95146.0,0.2381927]
[1732824534893,0.002723,95147.0,95146.0,0.23819254]
[1732824536994,0.002723,95147.0,95146.0,0.13309154]
[1732824537619,0.002723,95147.0,95146.0,0.13812608]
[1732824537817,0.002723,95147.0,95146.0,0.10284521]
[1732824538049,0.002723,95147.0,95146.0,0.13812686]
[1732824538601,0.107823,95147.0,95146.0,0.13812686]
[1732824540392,0.107823,95147.0,95146.0,0.13309207]
[1732824541079,0.318024,95147.0,95146.0,0.03024702]
[1732824542197,0.318024,95147.0,95146.0,0.03110852]
[1732824545154,0.107823,95147.0,95146.0,0.03110852]
[1732824545388,0.002723,95147.0,95146.0,0.03110852]
[1732824545602,0.107823,95147.0,95146.0,0.03110852]
[1732824548059,0.002723,95147.0,95146.0,0.23905473]
[1732824548286,0.002723,95147.0,95146.0,0.28415473]
[1732824548749,0.002723,95147.0,95146.0,0.36535473]
[1732824550335,0.002723,95147.0,95146.0,0.33510771]
[1732824550549,0.002723,95147.0,95146.0,0.36535443]
[1732824551051,0.0017238,95160.0,95146.0,0.36535443]
[1732824551052,0.0017238,95160.0,95159.0,0.105087]
[1732824551267,0.0017238,95160.0,95159.0,0.23817893]
[1732824551482,0.0017238,95160.0,95159.0,0.13309193]
[1732824551929,0.0017238,95160.0,95159.0,0.23817893]
[1732824552381,0.0017238,95160.0,95159.0,0.13309193]
[1732824552595,0.0017238,95160.0,95159.0,0.13308733]
[1732824553255,0.0017238,95160.0,95159.0,0.20793221]
[1732824553472,0.0017238,95160.0,95159.0,0.10284521]
[1732824553720,0.0017238,95160.0,95159.0,0.20793221]
[1732824554146,0.0027238,95160.0,95159.0,0.23817408]
[1732824554359,0.0037238,95160.0,95159.0,0.22108085]
[1732824554578,0.0037238,95160.0,95159.0,0.20793221]
[1732824554821,0.0027238,95160.0,95159.0,0.20793221]
[1732824555093,0.0027238,95160.0,95159.0,0.10384521]
[1732824555591,0.0027238,95160.0,95159.0,0.12751276]
[1732824555812,0.0027238,95160.0,95159.0,0.13408708]
[1732824558096,0.0027238,95160.0,95159.0,0.23917408]
[1732824558530,0.0027238,95160.0,95159.0,0.13408708]
[1732824558744,0.0027238,95160.0,95159.0,0.23917408]
[1732824559195,0.0027238,95160.0,95159.0,0.20893221]
[1732824559422,0.0027238,95160.0,95159.0,0.23917408]
[1732824559635,0.0027238,95160.0,95159.0,0.13408708]
[1732824559853,0.0027238,95160.0,95159.0,0.23917408]
[1732824560090,0.0027238,95160.0,95159.0,0.23917406]
[1732824560546,0.0027238,95160.0,95159.0,0.25176281]
[1732824561670,0.0027238,95160.0,95159.0,0.22809527]
[1732824561888,0.0027238,95160.0,95159.0,0.20893221]
[1732824562983,0.0027238,95160.0,95159.0,0.22151958]
[1732824564313,0.0027238,95160.0,95159.0,0.25176152]
[1732824566720,0.0027238,95160.0,95159.0,0.23917415]
[1732824569377,0.0027638,95160.0,95159.0,0.23917415]
[1732824570083,0.0027638,95160.0,95159.0,0.13408715]
[1732824570521,0.1078498,95160.0,95159.0,0.13408715]
[1732824572264,0.0027638,95160.0,95159.0,0.13408715]
[1732824573480,0.0027638,95160.0,95159.0,0.13911566]
[1732824573835,0.0027638,95160.0,95159.0,0.13408726]
[1732824574463,0.0027638,95160.0,95159.0,0.13911566]
[1732824574906,0.0027638,95160.0,95159.0,0.13408726]
[1732824575338,0.1078498,95160.0,95159.0,0.13408726]